Cogmind - Beta 17 @@@ ROGUE MODE // 2026.07.24 @ 08:54:54 Player: aperiodic Result: Destroyed by Y5-QFR(R) with Subdweller Machine Gun Performance ------------- Evolutions (0) 0 Regions Visited (2) 400 Robots Destroyed (38) 190 Value Destroyed (813) 813 Prototype IDs (21) 420 Alien Tech Used (0) 0 Bonus (0) 0 TOTAL SCORE: 1823 Bonus ------- None Cogmind --------- Core Integrity 0/250 Matter 250/300 Energy 250/250 System Corruption 0% Temperature Cool (60) Movement Rolling (130) Ox2 Location -10/Subcaves Parts ------- > --- POWER (1) -------- Ion Engine > --- PROPULSION (2) --- Subdweller Monowheel > --- UTILITY (2) ------ High-capacity Storage Unit Hardened Light Armor Plating > --- WEAPON (2) ------- Subdweller Beam Cannon Makeshift Shrapnel Gun > --- INVENTORY (20) --- Subdweller Power Source Wheel Disposable Heat Sink Small Storage Unit Large Storage Unit Hardened Light Armor Plating Hardened Light Armor Plating Hardened Light Armor Plating Shield Generator Improved Medium Laser Subdweller Laser Subdweller Laser Subdweller Beam Cannon Subdweller Machine Gun Light Cannon Battle Cannon Peak State ------------ > --- POWER ------------ Ion Engine > --- PROPULSION ------- Compact Wheel Subdweller Monowheel > --- UTILITY ---------- High-capacity Storage Unit Seismic Detector > --- WEAPON ----------- Subdweller Beam Cannon Makeshift Shrapnel Gun > --- INVENTORY -------- Subdweller Power Source Wheel Disposable Heat Sink Small Storage Unit Large Storage Unit Hardened Light Armor Plating Hardened Light Armor Plating Hardened Light Armor Plating Hardened Light Armor Plating Shield Generator Improved Medium Laser Subdweller Laser Subdweller Laser Subdweller Beam Cannon Subdweller Machine Gun Light Cannon Battle Cannon [Rating: 15] Favorites ----------- Power Ion Engine Engine Ion Engine Propulsion Wheel Treads Light Treads Wheel Wheel Utility High-capacity Storage Unit Device Seismic Detector Storage High-capacity Storage Unit Protection Hardened Light Armor Plating Weapon Mining Laser Energy Gun Medium Laser Energy Cannon Subdweller Beam Cannon Ballistic Gun Subdweller Machine Gun Special Weapon Mining Laser Build | -11 -10 -10 ------- Run | Yrd Mat Sub Slots Evolved . | . . . Power . | . . . Propulsion . | . . . Utility . | . . . Weapon . | . . . Parts Attached 30 | 7 13 10 Power 3 | 1 1 1 Engine 3 | 1 1 1 Core . | . . . Reactor . | . . . Propulsion 7 | 2 4 1 Treads 2 | . 2 . Leg . | . . . Wheel 5 | 2 2 1 Hover . | . . . Flight . | . . . Utility 7 | 1 4 2 Device 1 | . 1 . Storage 3 | 1 2 . Processor . | . . . Hackware . | . . . Protection 3 | . 1 2 Artifact . | . . . Weapon 13 | 3 4 6 Energy Gun 7 | 1 3 3 Energy Cannon 1 | . . 1 Ballistic Gun 4 | 2 . 2 Ballistic Cannon . | . . . Launcher . | . . . Special Weapon 1 | . 1 . Impact Weapon . | . . . Slashing Weapon . | . . . Piercing Weapon . | . . . Special Melee Weapon . | . . . Unidentified Prototypes . | . . . Parts Lost 12 | . 2 10 Power 2 | . 1 1 Propulsion 5 | . . 5 Utility 2 | . . 2 Weapon 3 | . 1 2 Highest Loss Streak 3 | . 2 3 To Critical Strikes . | . . . Average Backups 17 | 4 13 19 Power . | . . . Propulsion 2 | 2 3 1 Utility 7 | . 5 8 Weapon 6 | . 3 7 Tool/Special . | . . . Unused Backups 18 | . 4 14 Power 1 | . . 1 Propulsion 1 | . . 1 Utility 5 | . . 5 Weapon 11 | . 4 7 Tool/Special . | . . . Average Slot Usage (%) 98 | . 97 99 Engine 13 | . 12 13 Treads 5 | . 17 . Wheel 22 | . 10 27 Device 6 | . 5 6 Storage 14 | . 14 14 Protection 7 | . 8 7 Energy Gun 9 | . 16 6 Energy Cannon 5 | . . 8 Ballistic Gun 5 | . 9 4 Special Weapon 6 | . 1 8 Peak Build Rating 15 | 6 12 15 Average Rating 10 | 5 8 11 On Entrance 6 | . 6 12 Avg Prop Armor Cover (%) 6 | . . 6 Naked Turns . | . . . Heaviest Build 60 | 14 54 60 Greatest Support 40 | 20 40 36 Greatest Overweight (x) 5 | 4 2 5 Average Overweight (x) 1 | . 1 1 Largest Inventory Capacity 20 | 8 20 20 Average Capacity 19 | 7 19 20 Most Carried 20 | 8 20 20 Average Carried 17 | 4 13 19 Final Capacity 20 | 8 20 20 Final Carried 20 | 8 20 16 Class Distribution -------------------- 100% | Mutant Dominant Class ---------------- Mutant | -10/Materials Mutant | -10/Subcaves Resources | -11 -10 -10 ----------- Run | Yrd Mat Sub Matter Collected 872 | 288 305 279 Remotely . | . . . Salvage Created 1265 | 127 651 487 Parts 73 | 10 29 34 Haulers Intercepted 2 | . 2 . Recyclers Shooed 1 | . 1 . Parts Field Recycled . | . . . Retrieved Matter . | . . . Parts Self-Destructed 8 | . . 8 Prevented . | . . . Parts Restored . | . . . Kills | -11 -10 -10 ------- Run | Yrd Mat Sub Combat Hostiles Destroyed 26 | . 12 14 Guns 23 | . 12 11 Cannons 3 | . . 3 Classes Destroyed 10 | 2 5 3 Worker 2 | . 2 . Tunneler 4 | 2 2 . Hauler 2 | . 2 . Recycler 2 | 1 1 . Watcher 2 | . 2 . Swarmer 10 | . 6 4 Grunt 6 | . 6 . Sentry 1 | . . 1 Artisan 1 | . . 1 Subdweller 9 | . . 9 Best Kill Streak 4 | 2 4 4 Combat Bots Only 4 | . 3 4 Max Kills in Single Turn 2 | 1 2 1 Gunslinging 1 | . 1 . Exploded . | . . . Melee . | . . . Uniques/NPCs Destroyed . | . . . Combat | -11 -10 -10 -------- Run | Yrd Mat Sub Hostile Shots Fired 146 | . 57 89 Missed 40 | . 16 24 Hits 106 | . 41 65 Projectile 106 | . 41 65 Critical Strikes 2 | . 1 1 Damage Taken 1580 | . 428 1152 Core 252 | . 22 230 Absorbed by Shields . | . . . Core Remaining (%) 100 | 100 . . Volleys Fired 160 | 6 66 88 Largest 2 | 2 2 2 Hottest 112 | 70 112 112 Shots Fired 252 | 12 124 116 Gun 187 | 12 117 58 Cannon 23 | . . 23 Launcher . | . . . Special 42 | . 7 35 Kinetic 65 | 6 42 17 Thermal 187 | 6 82 99 Explosive . | . . . Electromagnetic . | . . . Robot Hit Streak 23 | 6 11 23 Robot Miss Streak 4 | 1 4 4 Penetration Max . | . . . Secondary Targets 2 | . 1 1 Max Gunslinging Chain 1 | . 1 1 Shots Hit Robots 156 | 10 85 61 Core Hits 59 | 4 34 21 Critical Kills . | . . . Critical Parts Destroyed . | . . . Critical Strikes 9 | . 7 2 Burn 9 | . 7 2 Melee Attacks . | . . . Impact . | . . . Slashing . | . . . Piercing . | . . . Sneak Attacks . | . . . Combat Hostiles . | . . . Follow-up Attacks . | . . . Damage Inflicted 2522 | 138 1114 1270 Guns 2105 | 138 1089 878 Cannons 392 | . . 392 Explosions . | . . . Melee . | . . . Ramming 25 | . 25 . Kinetic 676 | 88 323 265 Thermal 1821 | 50 766 1005 Explosive . | . . . Electromagnetic . | . . . Impact . | . . . Slashing . | . . . Piercing . | . . . Highest Corruption . | . . . Average Corruption . | . . . Corruption Purged . | . . . Corruption Blocked . | . . . Overload Shots . | . . . Overflow Damage . | . . . Projectiles . | . . . Explosions . | . . . Melee . | . . . Knockbacks . | . . . Impact . | . . . Kinetic . | . . . Secondary . | . . . Self-Inflicted Damage . | . . . Shots . | . . . Rammed 3 | . 3 . Targets Rammed 3 | . 3 . Kicked . | . . . Crushed . | . . . Highest Temperature 250 | 27 250 110 Average Temperature 50 | 10 56 40 Received Heat Transfer 342 | . 159 183 Effects 1 | . 1 . Energy Bleed 1 | . 1 . Siege Activations . | . . . Martial Activations . | . . . Shielding Activations . | . . . Robots Disrupted . | . . . Combat Hostiles . | . . . Robots Corrupted . | . . . Combat Hostiles . | . . . Parts Fried . | . . . Impact Corruptions . | . . . Robots Melted . | . . . Combat Hostiles . | . . . Parts Melted 5 | . 3 2 Heat Transferred 4506 | 148 2627 1731 Parts Sabotaged . | . . . Parts Stolen . | . . . Parts Stripped . | . . . Power Chain Reactions . | . . . Alert | -11 -10 -10 ------- Run | Yrd Mat Sub Maximum Alert Level . | . . . Low Security (%) 100 | 100 100 . Level 1 . | . . . Level 2 . | . . . Level 3 . | . . . Level 4 . | . . . Level 5 . | . . . High Security . | . . . Max Security . | . . . Peak Influence 93 | 5 93 . Initial . | . . . Average 21 | 1 22 . Influence Increases 615 | 15 440 160 Destroy 0b10 Robot/C 340 | . 240 100 Destroy 0b10 Robot/NC 60 | 15 45 . Destroy Leader 48 | . 48 . Successful Hack 55 | . 55 . Select Force Hacks 30 | . 30 . Destroy Structure 7 | . 7 . Lose Combat Pursuer 75 | . 15 60 Influence Decreases 523 | 15 405 103 Entered New Map 18 | . . 18 Time Decay 443 | 15 395 33 Lost Part 62 | . 10 52 Squads Dispatched 1 | . 1 . Investigation 1 | . 1 . Extermination . | . . . Reinforcement . | . . . Assault . | . . . Garrison . | . . . Intercept . | . . . Searches Triggered . | . . . Construction Impeded . | . . . Haulers Reinforced . | . . . Active Scanning Responses . | . . . Cargo Convoy Interrupts . | . . . Stealth | -11 -10 -10 --------- Run | Yrd Mat Sub Distress Signals 1 | . 1 . Communications Jammed . | . . . Distress Signals . | . . . Times Spotted 45 | . 26 19 Peak Tracking Total 5 | . 4 5 Tactical Retreats 4 | . 1 3 Traps | -11 -10 -10 ------- Run | Yrd Mat Sub Traps Triggered 1 | . . 1 Indirectly . | . . . Trap Hack Attempts . | . . . Triggered . | . . . Disarmed . | . . . Reprogrammed . | . . . Reused . | . . . Traps Extracted . | . . . Installed . | . . . Triggered . | . . . Machines | -11 -10 -10 ---------- Run | Yrd Mat Sub Machines Disabled . | . . . Max in Single Turn . | . . . Machines Repaired . | . . . Machines Dismantled . | . . . Machines Sabotaged . | . . . Overloaded Fab Kills . | . . . Hacking | -11 -10 -10 --------- Run | Yrd Mat Sub Machines Accessed 12 | . 9 3 Terminals 8 | . 8 . Fabricators . | . . . Repair Stations . | . . . Recycling Units 1 | . 1 . Scanalyzers . | . . . Garrison Access . | . . . Total Hacks 32 | . 26 6 Successful 26 | . 20 6 Failed 6 | . 6 . Catastrophic . | . . . Database Lockouts . | . . . Manual 19 | . 19 . Terminals 25 | . 25 . Fabricators . | . . . Repair Stations . | . . . Recycling Units 1 | . 1 . Scanalyzers . | . . . Garrison Access . | . . . Terminal Hacks 15 | . 9 6 Record 4 | . . 4 Robot Analysis 2 | . 2 . Prototype ID Bank 4 | . 4 . Open Door 1 | . . 1 Terminal Index 1 | . 1 . Locate Traps 2 | . 2 . Proto ID Catalog 1 | . . 1 Fabricator Hacks . | . . . Repair Station Hacks . | . . . Recycling Unit Hacks . | . . . Scanalyzer . | . . . Garrison Access Hacks . | . . . Unauthorized Hacks 10 | . 10 . Terminals 9 | . 9 . Botnet 2 | . 2 . Operators 1 | . 1 . Skim 6 | . 6 . Fabricators . | . . . Repair Stations . | . . . Recycling Units 1 | . 1 . Tunnel 1 | . 1 . Scanalyzers . | . . . Garrison Access . | . . . Data Cores Recovered . | . . . Used . | . . . Hacking Detections 8 | . 8 . Full Trace Events . | . . . Feedback Events . | . . . Feedback Blocked . | . . . Robot Schematics Acquired . | . . . Robots Built . | . . . Authchips . | . . . Time . | . . . Total Robot Build Rating . | . . . Part Schematics Acquired . | . . . Parts Built . | . . . Authchips . | . . . Time . | . . . Total Part Build Rating . | . . . Part Studies Acquired . | . . . Parts Repaired . | . . . Time . | . . . Parts Recycled . | . . . Recycled Matter . | . . . Retrieved Matter . | . . . Retrieved Components . | . . . Parts Scanalyzed . | . . . Part Schematics Acquired . | . . . Parts Damaged . | . . . Bothacking | -11 -10 -10 ------------ Run | Yrd Mat Sub Used RIF Installer . | . . . Robots Hacked . | . . . Non-combat . | . . . Combat . | . . . Robot Hacks Applied . | . . . Relay Couplers Released . | . . . Fabnet Peak Effective % . | . . . Robots Rewired . | . . . Allies Hacked . | . . . Hacks Repelled . | . . . Allies | -11 -10 -10 -------- Run | Yrd Mat Sub Total Allies . | . . . Largest Group . | . . . Highest-Rated Group . | . . . Highest-Rated Ally . | . . . Total Orders . | . . . Ally Attacks . | . . . Total Damage . | . . . Kills . | . . . Allies Corrupted . | . . . Allies Melted . | . . . Intel | -11 -10 -10 ------- Run | Yrd Mat Sub Active Infowar (turns) 2318 | . 527 1791 Seismic 2318 | . 527 1791 Robot Analysis Total 2 | . 2 . Derelict Logs Recovered 2 | . . 2 Drone Launches . | . . . Drone Recoveries . | . . . Exploration | -11 -10 -10 ------------- Run | Yrd Mat Sub Turns Passed 5407 | 110 1470 3827 Spaces Moved 2744 | 69 713 1962 Core 14 | 14 . . Treads 325 | . 325 . Legs . | . . . Wheels 2405 | 55 388 1962 Hover . | . . . Flight . | . . . Fastest Speed 50 | 50 80 105 Average Speed 126 | 94 161 114 Slowest Speed 250 | 250 240 155 Overloaded Moves . | . . . Propulsion Burnouts . | . . . Robots Hopped . | . . . Potential Cave-ins . | . . . Cave-ins Triggered . | . . . Exploration Rate (%) 55 | 4 91 71 Regions Visited 2 Branch Regions 1 Pre-discovered Areas 5 | . 3 2 Known Exits Taken 1 | . 1 . Unknown Exits Taken 1 | 1 . . Scrap Searched 4 | . . 4 Spaces Dug 9 | . 7 2 Terrain Destroyed 11 | . 7 4 Melee . | . . . Projectile 11 | . 7 4 AOE . | . . . Terrain Rammed . | . . . Walls Destroyed . | . . . Machines Disabled . | . . . Actions | -11 -10 -10 --------- Run | Yrd Mat Sub Total 4326 | 98 886 3342 Wait 1304 | 9 57 1238 Move 2742 | 68 712 1962 Hop . | . . . Pick Up 39 | 8 19 12 Fast Attach 8 | 6 . 2 Attach 12 | . 3 9 Detach 2 | . . 2 Swap 41 | 1 20 20 Drop 15 | . 6 9 Fire 160 | 6 66 88 Melee . | . . . Ram . | . . . Kick . | . . . Crush 3 | . 3 . Escape Stasis . | . . . Rewire . | . . . Trap . | . . . Miscellaneous . | . . . Route ------- -11/Scrapyard -10/Materials (discovered 6 exits: *Mat x3 / *Min x2 / *Sub) -10/Subcaves (discovered 2 exits: [*Mat] / [*Rec]) History --------- Turn | Location | Event 13 | -11/Scrapyard | Discovered new exit (range 15) 111 | -11/Scrapyard | Entered Materials 318 | -10/Materials | Build established: Mutant 336 | -10/Materials | Discovered new exit (range 15) 542 | -10/Materials | Identified exit to Materials 542 | -10/Materials | Identified exit to Mines 542 | -10/Materials | Identified exit to Subcaves 574 | -10/Materials | Learned 2 Mines zone layouts 595 | -10/Materials | Learned location of Recycling (-9) 627 | -10/Materials | Learned location of 1 exit from Storage 1581 | -10/Materials | Entered Subcaves 1582 | -10/Subcaves | Approached by a straggling Scientist 1733 | -10/Subcaves | Visited 4L-MR0's lab 2956 | -10/Subcaves | Lost 3 parts (1p2n) 2988 | -10/Subcaves | Discovered new exit (range 8) 3071 | -10/Subcaves | Learned 2 Materials zone layouts 3761 | -10/Subcaves | Core integrity fell below 50% 4741 | -10/Subcaves | Core integrity fell below 20% 4763 | -10/Subcaves | A swath of the cavern ceiling suddenly collapsed 4971 | -10/Subcaves | Shifting Twisted Machinery released Mak. Light Armor Plating 4973 | -10/Subcaves | Learned location of Mines (-8) 4997 | -10/Subcaves | Shifting Twisted Machinery released Sub. Laser 5042 | -10/Subcaves | A swath of the cavern ceiling suddenly collapsed 5258 | -10/Subcaves | Discovered new exit (range 15) 5312 | -10/Subcaves | Visited Clippyterm 5316 | -10/Subcaves | Learned location of Extension (-4) 5316 | -10/Subcaves | Learned Factory trap positions 5408 | -10/Subcaves | Destroyed by Y5-QFR(R) with Subdweller Machine Gun Last Messages --------------- It looks like you're planning to spring a Derelict or three, would you like help? World map updated: -4/Extension. >>Record "Banana Peels" It looks like you're afraid of the consquences of stepping on the wrong spot, would you like help? Data stored: Factory trap records. >>Record "LRC-V1" It looks like you're REDACTED, I can suggest REDACTED and REDACTED. Also definitely avoid REDACTED. >>Record "LU-1G1" It looks like you're researching the legendary digger of dangerously deep tunnels, unfortunately it seems not even members of the Boring Crew know what became of that one. 05359_ Y5-QFR(R): "SUB#$%&!" 05372_ Seismic Detector destroyed. 05406_ Com. Wheel destroyed. Map ----- +----------------------------------------------------+ | ?????????????????????????????????????????????????? | | ?????????????????????????????????????????????????? | | ?????????????????????????????????????????????????? | | ?????????????????????????????????????????????????? | | ?????????????????????????????????????????????????? | | ?????????????????????????????????????????????????? | | ?????????????????????????????????????????????????? | | ??????????????????????#??????????????????????????? | | ??????????????????????